[Event "Reykjavik Open 2024"]
[Site "Reykjavik"]
[Date "2024.03.17"]
[Round "4.39"]
[White "Botez, Andrea"]
[Black "Fridjonsson, Julius"]
[Result "1-0"]
[ECO "D00"]
[WhiteElo "1825"]
[BlackElo "2070"]
[Annotator "RC"]
[PlyCount "77"]
[EventDate "2024.03.12"]
[EventCountry "ISL"]
[SourceTitle "playchess.com"]
[Source "ChessBase"]
[SourceQuality "1"]
[TimeControl "40/5400+30:1800+30"]

1. d4 {[%emt 0:04:51]} Nf6 {[%emt 0:00:11]} 2. Nc3 {[%emt 0:00:15]} d5 {[%emt 0:00:39]} 3. Bf4 {[%emt 0:00:13]} c5 {[%emt 0:01:46]} 4. e3 {[%emt 0:01:09]} a6 {[%emt 0:00:24]} 5. dxc5 {[%emt 0:16:54]} Nc6 {[%emt 0:01:24]} 6. Nf3 {[%emt 0:02:41]} Bg4 {[%emt 0:03:12]} 7. h3 {[%emt 0:01:55]} Bxf3 {[%emt 0:01:14]} 8. Qxf3 {[%emt 0:01:33]} e6 {[%emt 0:01:00]} 9. Bg5 {[%emt 0:06:06]} Bxc5 {[%emt 0:06:13]} 10. e4 {[%emt 0:06:36]} Nd4 {[%emt 0:44:22]} 11. Qd3 {[%emt 0:05:32]} dxe4 {[%emt 0:00:47]} 12. Nxe4 {[%emt 0:01:20]} Be7 {[%emt 0:00:08]} 13. Bxf6 {[%emt 0:10:11]} gxf6 {[%emt 0:01:49]} 14. O-O-O {[%emt 0:01:14]} Nc6 {[%emt 0:04:59]} 15. Qc3 {[%emt 0:02:12]} Qc7 {[%emt 0:01:36]} 16. Kb1 {[%emt 0:04:09]} Qe5 {[%emt 0:01:48]} 17. Qxe5 {[%emt 0:06:42]} fxe5 {[%emt 0:00:37]} 18. Be2 {[%emt 0:10:10]} Rd8 {[%emt 0:09:01]} 19. Bh5 {[%emt 0:03:22]} Rd4 {[%emt 0:01:33]} 20. Rhe1 {[%emt 0:00:57]} Rf8 {[%emt 0:00:18]} 21. c3 {[%emt 0:00:40]} Rd5 {[%emt 0:00:47]} 22. Bf3 {[%emt 0:05:25]} Kd8 {[%emt 0:00:53]} 23. Nd2 {[%emt 0:00:28]} Rd7 {[%emt 0:03:20]} 24. Bxc6 {[%emt 0:02:15]} bxc6 {[%emt 0:00:02]} 25. Rxe5 {[%emt 0:00:09]} Kc7 {[%emt 0:00:19]} 26. Kc2 {[%emt 0:01:41]} Rfd8 {[%emt 0:00:02]} 27. g3 {[%emt 0:00:46]} h6 {[%emt 0:00:52]} 28. Re2 {[%emt 0:00:23]} Bg5 {[%emt 0:00:53]} 29. f4 {[%emt 0:00:19]} Be7 {[%emt 0:00:05]} 30. Rg1 {[%emt 0:03:40]} Rd5 {[%emt 0:01:29]} 31. Nf3 {[%emt 0:00:51]} Bf6 {[%emt 0:00:14]} 32. Rd2 {[%emt 0:00:38]} Rh5 {[%emt 0:00:51]} 33. Rxd8 {[%emt 0:00:13]} Bxd8 {[%emt 0:00:11]} 34. Rh1 {[%emt 0:00:57]} Rd5 {[%emt 0:00:32]} 35. Ne5 {[%emt 0:00:21]} f6 {[%emt 0:00:11]} 36. Nf7 {[%emt 0:00:33]} h5 {[%emt 0:00:19]} 37. Re1 {[%emt 0:00:38]} e5 {[%emt 0:01:02]} 38. fxe5 {[%emt 0:00:18]} fxe5 {[%emt 0:00:45]} 39. Nxe5 {[%emt 0:00:23]} 1-0

[Event "Reykjavik Open 2024"]
[Site "Reykjavik"]
[Date "2024.03.17"]
[Round "4.40"]
[White "Johannsson, Markus Orri"]
[Black "Saine, Zachary"]
[Result "0-1"]
[ECO "C54"]
[WhiteElo "1758"]
[BlackElo "2010"]
[Annotator "RC"]
[PlyCount "98"]
[EventDate "2024.03.12"]
[EventCountry "ISL"]
[SourceTitle "playchess.com"]
[Source "ChessBase"]
[SourceQuality "1"]
[TimeControl "40/5400+30:1800+30"]

1. e4 {[%emt 0:00:01]} e5 {[%emt 0:00:12]} 2. Nf3 {[%emt 0:00:05]} Nc6 {[%emt 0:00:04]} 3. Bc4 {[%emt 0:00:05]} Bc5 {[%emt 0:00:05]} 4. d3 {[%emt 0:00:21]} Nf6 {[%emt 0:00:09]} 5. c3 {[%emt 0:00:37]} d6 {[%emt 0:00:26]} 6. O-O {[%emt 0:00:36]} a6 {[%emt 0:00:11]} 7. a4 {[%emt 0:00:10]} Ba7 {[%emt 0:00:06]} 8. Re1 {[%emt 0:00:41]} h6 {[%emt 0:00:50]} 9. Nbd2 {[%emt 0:00:17]} O-O {[%emt 0:00:30]} 10. h3 {[%emt 0:00:06]} Ne7 {[%emt 0:00:41]} 11. Nf1 {[%emt 0:01:37]} Ng6 {[%emt 0:03:28]} 12. Ng3 {[%emt 0:06:23]} c6 {[%emt 0:03:40]} 13. Ba2 {[%emt 0:04:19]} Be6 {[%emt 0:08:42]} 14. Be3 {[%emt 0:06:41]} Bxe3 {[%emt 0:03:30]} 15. fxe3 {[%emt 0:01:14]} d5 {[%emt 0:02:19]} 16. exd5 {[%emt 0:05:59]} cxd5 {[%emt 0:00:14]} 17. d4 {[%emt 0:06:17]} e4 {[%emt 0:10:06]} 18. Ne5 {[%emt 0:01:46]} Qc7 {[%emt 0:03:54]} 19. Nxg6 {[%emt 0:07:02]} Qxg3 {[%emt 0:04:08]} 20. Nxf8 {[%emt 0:06:11]} Bxh3 {[%emt 0:00:22]} 21. Qd2 {[%emt 0:04:55]} Ng4 {[%emt 0:05:21]} 22. Bxd5 {[%emt 0:01:58]} Rxf8 {[%emt 0:00:52]} 23. Bxe4 {[%emt 0:02:53]} f5 {[%emt 0:01:11]} 24. Bf3 {[%emt 0:02:25]} Qh2+ {[%emt 0:04:49]} 25. Kf1 {[%emt 0:00:33]} f4 {[%emt 0:00:36]} 26. e4 {[%emt 0:05:00]} Ne3+ {[%emt 0:05:32]} 27. Ke2 {[%emt 0:00:47]} Bxg2 {[%emt 0:06:31]} 28. Bxg2 {[%emt 0:01:32]} Nxg2 {[%emt 0:00:19]} 29. Rf1 {[%emt 0:10:33]} f3+ {[%emt 0:07:27]} 30. Kd3 {[%emt 0:02:58]} f2 {[%emt 0:01:21]} 31. Kc2 {[%emt 0:09:15]} Qg3 {[%emt 0:01:21]} 32. Qe2 {[%emt 0:02:29]} Ne3+ {[%emt 0:05:06]} 33. Kd2 {[%emt 0:00:15]} Nxf1+ {[%emt 0:00:50]} 34. Rxf1 {[%emt 0:00:18]} g5 {[%emt 0:00:25]} 35. e5 {[%emt 0:16:09]} Rf3 {[%emt 0:09:21]} 36. Qe4 {[%emt 0:00:00]} Kf8 {[%emt 0:02:03]} 37. d5 {[%emt 0:00:00]} g4 {[%emt 0:02:51]} 38. Qb4+ {[%emt 0:00:00]} Ke8 {[%emt 0:02:56]} 39. Qd6 {[%emt 0:00:00]} Qf4+ {[%emt 0:00:41]} 40. Kc2 {[%emt 0:00:00]} Qxa4+ {[%emt 0:00:37]} 41. Kd2 {[%emt 0:27:00]} Qb5 {[%emt 0:22:30]} 42. Qg6+ {[%emt 0:00:00]} Kd8 {[%emt 0:01:38]} 43. Qg8+ {[%emt 0:00:00]} Kc7 {[%emt 0:00:22]} 44. Qh7+ {[%emt 0:00:24]} Kb8 {[%emt 0:00:22]} 45. d6 {[%emt 0:01:44]} Qxb2+ {[%emt 0:06:47]} 46. Qc2 {[%emt 0:00:23]} Qxc2+ {[%emt 0:00:40]} 47. Kxc2 {[%emt 0:00:07]} g3 {[%emt 0:00:15]} 48. e6 {[%emt 0:01:35]} Re3 {[%emt 0:01:57]} 49. Rd1 {[%emt 0:00:33]} Kc8 {[%emt 0:00:07]} 0-1

[Event "Reykjavik Open 2024"]
[Site "Reykjavik"]
[Date "2024.03.17"]
[Round "4.41"]
[White "Thorfinnsson, Bragi"]
[Black "Harish, Neeraj"]
[Result "0-1"]
[ECO "B30"]
[WhiteElo "2397"]
[BlackElo "2090"]
[Annotator "TA"]
[PlyCount "70"]
[EventDate "2024.03.12"]
[EventCountry "ISL"]
[SourceTitle "playchess.com"]
[Source "ChessBase"]
[SourceQuality "1"]
[TimeControl "40/5400+30:1800+30"]

{[%evp 9,70,51,49,35,33,34,51,48,45,17,10,12,8,-2,12,4,22,20,20,22,38,43,39,48,42,17,27,25,20,13,25,16,15,0,78,33,44,12,41,17,54,20,58,-79,-83,-81,-75,-172,-77,-175,-167,-172,-171,-228,-226,-387,-230,-229,-220,-395,-412,-667,-674]} 1. e4 {[%emt 0:08:28]} c5 {[%emt 0:01:00]} 2. Nc3 {[%emt 0:01:04]} Nc6 {[%emt 0:00:22]} 3. Nf3 {[%emt 0:01:50][%cal Bg1f3,Bf3d2,Bd2f1,Bf1e3][%mdl 32]} e5 {[%emt 0:00:30]} 4. Bc4 {[%emt 0:00:11]} g6 {[%emt 0:00:29]} 5. d3 {[%emt 0:01:33]} h6 {[%emt 0:00:11]} 6. Nd2 {[%emt 0:09:15]} Bg7 {[%emt 0:01:11]} 7. Nf1 {[%emt 0:00:06]} Nge7 {[%emt 0:00:22]} 8. Ne3 {[%emt 0:01:29] White is slightly better.} d6 {[%emt 0:01:40]} 9. O-O {[%emt 0:00:29]} O-O {[%emt 0:00:12]} 10. a3 {[%emt 0:01:53]} Kh7 {[%emt 0:04:48]} 11. Ncd5 {[%emt 0:07:48]} Nxd5 {[%emt 0:04:44]} 12. Nxd5 {[%emt 0:00:24]} Ne7 {[%emt 0:03:22]} 13. Nxe7 {[%emt 0:06:42]} Qxe7 {[%emt 0:00:21]} 14. b4 {[%emt 0:00:46]} Bd7 {[%emt 0:09:19]} 15. Bd5 {[%emt 0:02:37]} Rab8 {[%emt 0:04:26]} 16. bxc5 {[%emt 0:02:38]} dxc5 {[%emt 0:00:15]} 17. Rb1 {[%emt 0:07:46]} b6 {[%emt 0:00:47]} 18. c4 {[%emt 0:02:35]} Qe8 {[%emt 0:03:09]} 19. Re1 {[%emt 0:01:13]} Bf6 {[%emt 0:04:06]} 20. g3 {[%emt 0:01:27]} Bg5 {[%emt 0:02:23]} 21. f4 {[%emt 0:00:25]} Bf6 {[%emt 0:02:12]} (21... exf4 $1 $11 {keeps the balance.} 22. h4 Bf6) 22. Qf3 {[%emt 0:00:24]} (22. f5 $5) 22... exf4 {[%emt 0:09:00]} 23. gxf4 {[%emt 0:01:25]} Qe7 {[%emt 0:02:35]} 24. Kh1 {[%emt 0:04:13]} Rbe8 {[%emt 0:05:13]} 25. Bb2 {[%emt 0:06:22]} h5 {[%emt 0:07:05]} 26. f5 {[%emt 0:01:40]} (26. Bxf6 $14 {keeps the upper hand.} Qxf6 27. Rg1) 26... Bxb2 $17 {[%emt 0:02:48]} 27. Rxb2 {[%emt 0:01:58] Black must now prevent Rg1.} Bxf5 $1 {[%emt 0:02:01]} 28. Rg2 {[%emt 0:00:36]} (28. Rf2 $17) 28... Qh4 {[%emt 0:06:23]} (28... Bg4 $19 {and Black stays clearly on top.} 29. Qf4 Qe5 30. Qxe5 Rxe5) 29. Reg1 {[%emt 0:00:58]} (29. Qf2 $17 {was necessary.} Qxf2 30. Rxf2) 29... Bg4 $19 {[%emt 0:07:04]} 30. Qf4 {[%emt 0:01:19][%cal Rg2g4]} Qe7 {[%emt 0:01:50]} 31. Qe3 {[%emt 0:01:29] [#]} (31. Bc6 $142 Qe5 32. Qe3) 31... f5 $1 {[%emt 0:04:09]} 32. h3 $2 {[%emt 0:02:45]} (32. Rf2) 32... f4 {[%emt 0:00:33]} (32... Qh4 $142 {Strongly threatening ...f4.} 33. Rh2 f4) 33. Qf2 {[%emt 0:00:29]} f3 {[%emt 0:00:42]} ({Stronger than} 33... Bxh3 34. Rxg6 Rf6 (34... Bg4 $2 35. R6xg4 hxg4 36. Qh2+ Kg6 37. Rxg4+ $18) 35. Bg8+ Rxg8 (35... Kh8 $2 36. Qb2 $18) 36. Rxg8 $11) 34. Rg3 {[%emt 0:01:27]} (34. Rh2 Be6 35. Qg3) 34... Qh4 {[%emt 0:00:43]} 35. Kh2 {[%emt 0:01:57] [#]} (35. Rf1 $142 Bxh3 36. Rxf3 Bxf1+ 37. Qxh4 Rxf3 38. Qg5 Bxd3 (38... Rxd3 $2 {too greedy.} 39. Bf7 $18) 39. Kg2) 35... Bxh3 $1 {[%emt 0:01:03][%mdl 512] Weighted Error Value: White=0.59/Black=0.21 (precise) .  Mistake:       	White=7     	Black=3      Inaccurate:     	White=4     	Black=3      OK:         	White=8     	Black=6      Best:        	---       	Black=4      Strong:       	---       	Black=2      Brilliant:      	---       	Black=1} 0-1

[Event "Reykjavik Open 2024"]
[Site "Reykjavik"]
[Date "2024.03.17"]
[Round "4.42"]
[White "Prado, Alexandra"]
[Black "Leliveld, Andrew"]
[Result "0-1"]
[ECO "B18"]
[WhiteElo "1877"]
[BlackElo "1657"]
[Annotator "NA RC"]
[PlyCount "116"]
[EventDate "2024.03.12"]
[EventCountry "ISL"]
[SourceTitle "playchess.com"]
[Source "ChessBase"]
[SourceQuality "1"]
[TimeControl "40/5400+30:1800+30"]

1. e4 {[%emt 0:01:31]} c6 {[%emt 0:00:08]} 2. d4 {[%emt 0:00:09]} d5 {[%emt 0:00:10]} 3. Nc3 {[%emt 0:00:27]} dxe4 {[%emt 0:00:30]} 4. Nxe4 {[%emt 0:00:10]} Bf5 {[%emt 0:00:23]} 5. Ng3 {[%emt 0:00:21]} Bg6 {[%emt 0:00:19]} 6. Bc4 {[%emt 0:01:23]} e6 {[%emt 0:02:15]} 7. Nf3 {[%emt 0:06:50]} Nd7 {[%emt 0:02:52]} 8. O-O {[%emt 0:00:54]} Be7 {[%emt 0:02:59]} 9. Qe2 {[%emt 0:04:07]} Ngf6 {[%emt 0:03:34]} 10. Re1 {[%emt 0:00:35]} Nd5 {[%emt 0:00:56]} 11. c3 {[%emt 0:01:04]} a5 {[%emt 0:01:51]} 12. h3 {[%emt 0:09:20]} O-O {[%emt 0:01:08]} 13. a4 {[%emt 0:02:30]} Re8 {[%emt 0:01:31]} 14. Ne5 {[%emt 0:00:46]} Nxe5 {[%emt 0:01:43]} 15. dxe5 {[%emt 0:00:27]} Bc5 {[%emt 0:02:59]} 16. Ne4 {[%emt 0:03:36]} Be7 {[%emt 0:03:36]} 17. g3 {[%emt 0:03:53]} Qc7 {[%emt 0:06:01]} 18. f4 {[%emt 0:03:36]} Red8 {[%emt 0:00:31]} 19. Kg2 {[%emt 0:05:09]} Rab8 {[%emt 0:03:27]} 20. Nf2 {[%emt 0:01:45]} Qb6 {[%emt 0:07:10]} 21. Bxd5 {[%emt 0:02:53]} cxd5 {[%emt 0:04:31]} 22. Be3 {[%emt 0:02:06]} Qc6 {[%emt 0:01:57]} 23. Bd4 {[%emt 0:03:43]} b5 {[%emt 0:01:13]} 24. axb5 {[%emt 0:11:44]} Rxb5 {[%emt 0:00:16]} 25. Ra2 {[%emt 0:01:08]} Rdb8 {[%emt 0:00:21]} 26. Rea1 {[%emt 0:00:33]} Bd8 {[%emt 0:13:50]} 27. Kh2 {[%emt 0:05:56]} h6 {[%emt 0:00:58]} 28. Nd1 {[%emt 0:13:46]} Rb3 {[%emt 0:13:28]} 29. g4 {[%emt 0:04:01]} Qb5 {[%emt 0:01:39]} 30. Qf2 {[%emt 0:03:52]} Qd3 {[%emt 0:02:33]} 31. Ne3 {[%emt 0:00:28]} Be4 {[%emt 0:04:33]} 32. Rd1 {[%emt 0:01:37]} Qb5 {[%emt 0:01:42]} 33. Rd2 {[%emt 0:00:09]} Bb1 {[%emt 0:03:26]} 34. Ra1 {[%emt 0:04:20]} Rxb2 {[%emt 0:00:23]} 35. f5 {[%emt 0:01:57]} Rxd2 {[%emt 0:03:13]} 36. Qxd2 {[%emt 0:00:02]} Be4 {[%emt 0:02:27]} 37. Kg3 {[%emt 0:01:03]} Bc7 {[%emt 0:04:02]} 38. fxe6 {[%emt 0:00:14]} fxe6 {[%emt 0:00:20]} 39. Rf1 {[%emt 0:00:48]} Qb2 {[%emt 0:00:48]} 40. Qe1 {[%emt 0:00:48]} a4 {[%emt 0:01:38]} 41. h4 {[%emt 0:30:33]} a3 {[%emt 0:32:27]} 42. Rf2 {[%emt 0:00:00]} Qb1 {[%emt 0:00:00]} 43. Qxb1 {[%emt 0:00:00]} Bxb1 {[%emt 0:00:00]} 44. Nc2 {[%emt 0:00:00]} Bxc2 {[%emt 0:00:00]} 45. Rxc2 {[%emt 0:00:00]} Rb2 {[%emt 0:00:00]} 46. Rc1 {[%emt 0:00:00]} a2 {[%emt 0:00:00]} 47. Ra1 {[%emt 0:00:00]} Kf7 {[%emt 0:00:00]} 48. Kf4 {[%emt 0:00:00]} Rc2 {[%emt 0:00:00]} 49. h5 {[%emt 0:00:00]} Bd8 {[%emt 0:00:00]} 50. Ba7 {[%emt 0:03:32]} Ke8 {[%emt 0:00:00]} 51. Bd4 {[%emt 0:00:39]} Be7 {[%emt 0:00:00]} 52. Ke3 {[%emt 0:00:22]} Bg5+ {[%emt 0:00:00]} 53. Kf3 {[%emt 0:00:07]} Kd7 {[%emt 0:00:00]} 54. Kg3 {[%emt 0:00:59]} Kc6 {[%emt 0:00:00]} 55. Kf3 {[%emt 0:00:12]} Kb5 {[%emt 0:00:00]} 56. Kg3 {[%emt 0:00:15]} Kc4 {[%emt 0:00:00]} 57. Kf3 {[%emt 0:00:38]} Kb3 {[%emt 0:00:00]} 58. Kg3 {[%emt 0:00:11]} Bc1 {[%emt 0:02:59]} 0-1

[Event "Reykjavik Open 2024"]
[Site "Reykjavik"]
[Date "2024.03.17"]
[Round "4.43"]
[White "Beisteiner, Joachim"]
[Black "Tania, Sachdev"]
[Result "0-1"]
[ECO "C55"]
[WhiteElo "2079"]
[BlackElo "2393"]
[Annotator "TA"]
[PlyCount "38"]
[EventDate "2024.03.12"]
[EventCountry "ISL"]
[SourceTitle "playchess.com"]
[Source "ChessBase"]
[SourceQuality "1"]
[TimeControl "40/5400+30:1800+30"]

{[%evp 10,38,30,32,29,30,40,21,20,6,8,-34,-25,-33,-40,-36,-36,-107,-105,-237,-229,-243,-229,-250,-232,-285,-286,-317,-308,-312,-300]} 1. e4 {[%emt 0:00:05]} e5 {[%emt 0:00:07]} 2. Nf3 {[%emt 0:00:14]} Nc6 {[%emt 0:00:12]} 3. Bc4 {[%emt 0:00:13]} Nf6 {[%emt 0:00:05]} 4. d3 {[%emt 0:00:11]} h6 {[%emt 0:00:05]} 5. O-O {[%emt 0:00:15]} d6 {[%emt 0:00:28]} 6. a4 {[%emt 0:00:20]} g5 {[%emt 0:01:00]} 7. Nc3 {[%emt 0:00:35]} Bg7 {[%emt 0:01:15]} 8. Re1 {[%emt 0:02:45]} O-O {[%emt 0:09:02] The position is equal.} 9. Nd5 {[%emt 0:06:14]} Nxd5 {[%emt 0:05:01]} 10. exd5 {[%emt 0:07:13]} Ne7 {[%emt 0:01:41]} 11. d4 {[%emt 0:06:48][%cal Rd4e5]} g4 {[%emt 0:17:18]} 12. Nh4 {[%emt 0:01:00]} exd4 {[%emt 0:07:31]} (12... Nxd5 $5 13. g3 c6 $15) 13. Qd3 {[%emt 0:05:07] [#] Against Ng6} (13. Bd3 $1 $15) 13... Nxd5 $1 $17 {[%emt 0:12:05]} 14. Ng6 {[%emt 0:01:31]} (14. Qg3 $17 Nf6 15. f3) 14... fxg6 $19 {[%emt 0:02:32]} 15. Bxd5+ {[%emt 0:22:05]} Kh7 {[%emt 0:00:18]} 16. Be4 {[%emt 0:06:43]} Qf6 {[%emt 0:00:15]} 17. Qg3 {[%emt 0:02:42]} h5 {[%emt 0:06:28] And now ...h4 would win. Black has a decisive advantage.} 18. h4 {[%emt 0:02:12]} gxh3 {[%emt 0:02:37]} 19. Bg5 {[%emt 0:04:41] [#]} Qxf2+ $3 {[%emt 0:06:16][%mdl 512] White got outplayed after the opening.   Weighted Error Value: White=0.32/Black=0.01 (flawless) .  Mistake:       	White=2     	---        Inaccurate:     	White=1     	---        OK:         	White=4     	Black=7      Best:        	---       	Black=2      Strong:       	---       	Black=1} 0-1

[Event "Reykjavik Open 2024"]
[Site "Reykjavik"]
[Date "2024.03.17"]
[Round "4.44"]
[White "Nolsoe, Rani"]
[Black "Roberts, Tallulah"]
[Result "1-0"]
[ECO "C00"]
[WhiteElo "1986"]
[BlackElo "1671"]
[Annotator "NA RC"]
[PlyCount "97"]
[EventDate "2024.03.12"]
[EventCountry "ISL"]
[SourceTitle "playchess.com"]
[Source "ChessBase"]
[SourceQuality "1"]
[TimeControl "40/5400+30:1800+30"]

1. e4 {[%emt 0:00:49]} e6 {[%emt 0:00:02]} 2. d3 {[%emt 0:00:58]} d5 {[%emt 0:00:11]} 3. Qe2 {[%emt 0:00:14]} d4 {[%emt 0:04:33]} 4. f4 {[%emt 0:13:29]} c5 {[%emt 0:04:26]} 5. Nf3 {[%emt 0:00:16]} Nc6 {[%emt 0:00:56]} 6. g3 {[%emt 0:00:27]} Be7 {[%emt 0:11:26]} 7. Bg2 {[%emt 0:01:43]} h5 {[%emt 0:03:27]} 8. a4 {[%emt 0:02:39]} h4 {[%emt 0:02:07]} 9. Na3 {[%emt 0:04:32]} hxg3 {[%emt 0:09:45]} 10. hxg3 {[%emt 0:00:19]} Rxh1+ {[%emt 0:00:14]} 11. Bxh1 {[%emt 0:00:06]} Qa5+ {[%emt 0:13:51]} 12. Nd2 {[%emt 0:15:41]} Qxa4 {[%emt 0:07:34]} 13. Nb3 {[%emt 0:01:27]} Qb4+ {[%emt 0:04:38]} 14. Bd2 {[%emt 0:01:52]} Qb6 {[%emt 0:00:47]} 15. Qh5 {[%emt 0:08:04]} Bd7 {[%emt 0:08:12]} 16. Nc4 {[%emt 0:05:29]} Qb5 {[%emt 0:04:02]} 17. Qh8 {[%emt 0:04:46]} O-O-O {[%emt 0:01:54]} 18. Qxg7 {[%emt 0:00:17]} Rf8 {[%emt 0:01:25]} 19. e5 {[%emt 0:03:00]} Kb8 {[%emt 0:01:32]} 20. Nd6 {[%emt 0:06:34]} Bxd6 {[%emt 0:03:12]} 21. exd6 {[%emt 0:00:57]} Rd8 {[%emt 0:00:22]} 22. Qxf7 {[%emt 0:00:26]} Nh6 {[%emt 0:00:36]} 23. Qf6 {[%emt 0:01:24]} Ng4 {[%emt 0:00:56]} 24. Qg5 {[%emt 0:00:28]} Rh8 {[%emt 0:03:16]} 25. Be4 {[%emt 0:09:22]} Ne3 {[%emt 0:01:19]} 26. Bxe3 {[%emt 0:03:16]} dxe3 {[%emt 0:00:02]} 27. Qxc5 {[%emt 0:01:58]} Qb4+ {[%emt 0:00:52]} 28. Qxb4 {[%emt 0:04:39]} Nxb4 {[%emt 0:00:06]} 29. O-O-O {[%emt 0:04:22]} Rh2 {[%emt 0:01:18]} 30. c3 {[%emt 0:00:34]} Ba4 {[%emt 0:03:44]} 31. cxb4 {[%emt 0:01:47]} Bxb3 {[%emt 0:00:03]} 32. Re1 {[%emt 0:00:31]} Rc2+ {[%emt 0:01:00]} 33. Kb1 {[%emt 0:00:10]} e2 {[%emt 0:01:52]} 34. Bf3 {[%emt 0:00:47]} Rd2 {[%emt 0:00:38]} 35. Bxe2 {[%emt 0:01:19]} Kc8 {[%emt 0:01:08]} 36. g4 {[%emt 0:02:21]} Kd7 {[%emt 0:00:44]} 37. g5 {[%emt 0:00:13]} Kxd6 {[%emt 0:00:26]} 38. g6 {[%emt 0:00:55]} Ke7 {[%emt 0:00:47]} 39. f5 {[%emt 0:00:58]} Kf6 {[%emt 0:01:23]} 40. fxe6 {[%emt 0:00:14]} Kxg6 {[%emt 0:03:54]} 41. e7 {[%emt 0:30:29]} Ba4 {[%emt 0:31:47]} 42. e8=Q+ {[%emt 0:00:14]} Bxe8 {[%emt 0:00:24]} 43. Kc1 {[%emt 0:00:07]} Rxe2 {[%emt 0:00:00]} 44. Rxe2 {[%emt 0:00:00]} Bc6 {[%emt 0:00:00]} 45. Rf2 {[%emt 0:00:00]} a6 {[%emt 0:00:00]} 46. Kd2 {[%emt 0:00:00]} Bb5 {[%emt 0:00:00]} 47. Ke3 {[%emt 0:00:00]} Bc6 {[%emt 0:00:00]} 48. Kd4 {[%emt 0:00:00]} Bb5 {[%emt 0:00:00]} 49. Ke4 {[%emt 0:00:00]} 1-0

[Event "Reykjavik Open 2024"]
[Site "Reykjavik"]
[Date "2024.03.17"]
[Round "4.45"]
[White "Solsker, Tummas M."]
[Black "Kazarian, Anna-Maja"]
[Result "0-1"]
[ECO "D02"]
[WhiteElo "1897"]
[BlackElo "2206"]
[Annotator "RC"]
[PlyCount "80"]
[EventDate "2024.03.12"]
[EventCountry "ISL"]
[SourceTitle "playchess.com"]
[Source "ChessBase"]
[SourceQuality "1"]
[TimeControl "40/5400+30:1800+30"]

1. d4 {[%emt 0:00:21]} d5 {[%emt 0:00:04]} 2. Nf3 {[%emt 0:00:15]} Nf6 {[%emt 0:00:04]} 3. Bf4 {[%emt 0:00:18]} e6 {[%emt 0:00:06]} 4. e3 {[%emt 0:00:07]} c5 {[%emt 0:00:04]} 5. c3 {[%emt 0:03:58]} Nc6 {[%emt 0:00:08]} 6. Nbd2 {[%emt 0:01:09]} Nh5 {[%emt 0:00:32]} 7. Bg5 {[%emt 0:02:52]} Qb6 {[%emt 0:02:47]} 8. dxc5 {[%emt 0:10:08]} Bxc5 {[%emt 0:12:04]} 9. b4 {[%emt 0:02:43]} Bd6 {[%emt 0:01:42]} 10. Nc4 {[%emt 0:07:09]} Qc7 {[%emt 0:06:16]} 11. Nxd6+ {[%emt 0:01:08]} Qxd6 {[%emt 0:00:04]} 12. Bb5 {[%emt 0:13:46]} O-O {[%emt 0:13:46]} 13. O-O {[%emt 0:07:44]} f5 {[%emt 0:05:05]} 14. Nd4 {[%emt 0:17:23]} Nf6 {[%emt 0:04:46]} 15. Bxf6 {[%emt 0:04:19]} Rxf6 {[%emt 0:00:13]} 16. f4 {[%emt 0:00:14]} e5 {[%emt 0:04:35]} 17. Nf3 {[%emt 0:04:41]} exf4 {[%emt 0:01:39]} 18. exf4 {[%emt 0:00:06]} Qxf4 {[%emt 0:01:42]} 19. Qxd5+ {[%emt 0:00:13]} Be6 {[%emt 0:00:04]} 20. Qc5 {[%emt 0:01:41]} Rc8 {[%emt 0:04:39]} 21. Rae1 {[%emt 0:01:32]} b6 {[%emt 0:03:38]} 22. Qf2 {[%emt 0:03:17]} Bd5 {[%emt 0:05:03]} 23. a3 {[%emt 0:04:53]} Rg6 {[%emt 0:02:34]} 24. Re3 {[%emt 0:05:28]} h5 {[%emt 0:03:47]} 25. Rfe1 {[%emt 0:01:30]} Be4 {[%emt 0:05:18]} 26. Bd3 {[%emt 0:01:39]} Rf8 {[%emt 0:02:02]} 27. Bxe4 {[%emt 0:01:30]} fxe4 {[%emt 0:00:06]} 28. Kh1 {[%emt 0:02:04]} exf3 {[%emt 0:00:43]} 29. Rxf3 {[%emt 0:00:06]} Qb8 {[%emt 0:00:10]} 30. Rxf8+ {[%emt 0:01:50]} Qxf8 {[%emt 0:00:09]} 31. Qa2+ {[%emt 0:00:33]} Kh7 {[%emt 0:00:09]} 32. b5 {[%emt 0:00:18]} Ne5 {[%emt 0:01:45]} 33. Qe2 {[%emt 0:00:39]} Ng4 {[%emt 0:00:11]} 34. h3 {[%emt 0:00:56]} Nf2+ {[%emt 0:00:06]} 35. Kh2 {[%emt 0:00:32]} Qf4+ {[%emt 0:00:14]} 36. Kg1 {[%emt 0:00:33]} Nxh3+ {[%emt 0:00:06]} 37. Kh1 {[%emt 0:00:08]} Nf2+ {[%emt 0:00:31]} 38. Kg1 {[%emt 0:00:06]} Ng4 {[%emt 0:00:04]} 39. Qe4 {[%emt 0:00:29]} Qf2+ {[%emt 0:00:30]} 40. Kh1 {[%emt 0:00:07]} Nf6 {[%emt 0:00:13]} 0-1